fUSD/lending_fUSD_20250513
["ID","MTS","AMOUNT","RATE_DAILY","PERIOD"]
[360898184,1747128638938,-400.0,0.00011986,2]
[360898185,1747128638948,-400.0,0.00011986,2]
[360898186,1747128638958,-400.0,0.00011986,2]
[360898187,1747128638968,-400.0,0.00011986,2]
[360898188,1747128638977,-400.0,0.00011986,2]
[360898189,1747128638987,-400.0,0.00011986,2]
[360898190,1747128638997,-5800.08,0.00011986,2]
[360898191,1747128639007,-400.0,0.00011986,2]
[360898192,1747128639016,-400.0,0.00011986,2]
[360898193,1747128639025,-819.62,0.00011986,2]
[360898194,1747128639035,-400.0,0.00011986,2]
[360898195,1747128639044,-519.98,0.00011986,2]
[360898196,1747128639054,-400.0,0.00011986,2]
[360898197,1747128639063,-12700.64,0.00011986,2]
[360898198,1747128639072,-416.86348191,0.00011986,2]
[360898199,1747128639082,-400.0,0.00011986,2]
[360898200,1747128639091,-406.43634502,0.00011986,2]
[360898201,1747128639101,-413.06434702,0.00011986,2]
[360898202,1747128639110,-400.0,0.00011986,2]
[360898203,1747128639120,-756.14,0.00011986,2]
[360898204,1747128639129,-639.06,0.00011986,2]
[360898205,1747128639138,-981.55,0.00011986,2]
[360898206,1747128639147,-412.94484535,0.00011986,2]
[360898207,1747128639157,-4247.26,0.00011986,2]
[360898208,1747128639166,-400.0,0.00011986,2]
[360898209,1747128639176,-683.94,0.00011986,2]
[360898210,1747128639185,-400.0,0.00011986,2]
[360898211,1747128639195,-1063.34,0.00011986,2]
[360898212,1747128639205,-5349.98,0.00011986,2]
[360898213,1747128639214,-411.07037638,0.00011986,2]
[360898214,1747128639223,-400.0,0.00011986,2]
[360898215,1747128639233,-400.0,0.00011986,2]
[360898216,1747128639243,-400.0,0.00011986,2]
[360898217,1747128639253,-400.0,0.00011986,2]
[360898218,1747128639262,-406.99626624,0.00011986,2]
[360898219,1747128639272,-405.42,0.00011986,2]
[360898220,1747128639281,-400.0,0.00011986,2]
[360898221,1747128639291,-400.0,0.00011986,2]
[360898222,1747128639301,-757.85,0.00011986,2]
[360898223,1747128639310,-400.0,0.00011986,2]
[360898224,1747128639319,-400.0,0.00011986,2]
[360898225,1747128639329,-400.0,0.00011986,2]
[360898226,1747128639339,-400.0,0.00011986,2]
[360898227,1747128639348,-518.24390843,0.00011986,2]
[360898228,1747128639358,-400.0,0.00011986,2]
[360898229,1747128639367,-405.82366483,0.00011986,2]
[360898230,1747128639376,-759.31,0.00011986,2]
[360898231,1747128639386,-400.0,0.00011986,2]
[360898232,1747128639396,-400.0,0.00011986,2]
[360898233,1747128639406,-400.0,0.00011986,2]
[360898234,1747128639415,-400.0,0.00011986,2]
[360898235,1747128639425,-400.0,0.00011986,2]
[360898236,1747128639434,-400.0,0.00011986,2]
[360898237,1747128639444,-1527.57,0.00011986,2]
[360898238,1747128639454,-400.0,0.00011986,2]
[360898239,1747128639463,-400.0,0.00011986,2]
[360898240,1747128639472,-739.04,0.00011986,2]
[360898241,1747128639482,-635.51,0.00011986,2]
[360898242,1747128639491,-29.4286964,0.00011986,2]
[360898243,1747128639504,-611.9413036,0.00011986,2]
[360898244,1747128639514,-400.0,0.00011986,2]
[360898245,1747128639523,-403.51961101,0.00011986,2]
[360898246,1747128639533,-1425.45,0.00011986,2]
[360898247,1747128639542,-400.0,0.00011986,2]
[360898248,1747128639551,-526.1,0.00011986,2]
[360898249,1747128639561,-400.0,0.00011986,2]
[360898250,1747128639571,-486.20697488,0.00011986,2]
[360898251,1747128639580,-531.19,0.00011986,2]
[360898252,1747128639589,-865.66,0.00011986,2]
[360898253,1747128639599,-400.0,0.00011986,2]
[360898254,1747128639609,-938.68,0.00011986,2]
[360898255,1747128639618,-400.0,0.00011986,2]
[360898256,1747128639627,-400.0,0.00011986,2]
[360898257,1747128639637,-400.0,0.00011986,2]
[360898258,1747128639646,-400.0,0.00011986,2]
[360898259,1747128639656,-422.28535185,0.00011987,2]
[360898260,1747128639666,-400.0,0.00011987,2]
[360898261,1747128639675,-400.0,0.00011987,2]
[360898262,1747128639686,-403.91061681,0.00011987,2]
[360898263,1747128639699,-416.08838065,0.00011987,2]
[360898264,1747128639709,-410.35159201,0.00011987,2]
[360898265,1747128639718,-407.98637174,0.00011987,2]
[360898266,1747128639729,-400.35810922,0.00011987,2]
[360898267,1747128639738,-452.61659452,0.00011987,2]
[360898268,1747128639747,-491.40019184,0.00011987,2]
[360898269,1747128639757,-410.17005396,0.00011987,2]
[360898270,1747128639768,-464.3269909,0.00011987,2]
[360898271,1747128639777,-400.0,0.00011987,2]
[360898272,1747128639787,-400.0,0.00011987,2]
[360898273,1747128639796,-344.4335883,0.00011987,2]
[360898275,1747128639827,-400.0,0.00011985,2]
[360898277,1747128639837,-55.5664117,0.00011987,2]
[360898278,1747128639846,-400.0,0.00011987,2]
[360898279,1747128639855,-335.43769037,0.00011987,2]
[360898280,1747128639865,-410.85031507,0.00011987,2]
[360898281,1747128639874,-400.0,0.00011987,2]
[360898283,1747128639883,-400.0,0.00011987,2]
[360898284,1747128639893,-400.0,0.00011987,2]
[360898285,1747128639903,-400.0,0.00011987,2]
[360898286,1747128639913,-408.21021096,0.00011987,2]
[360898287,1747128639922,-400.0,0.00011987,2]
[360898288,1747128639932,-384.44224504,0.00011987,2]
[360898289,1747128639941,-415.34957186,0.00011987,2]
[360898290,1747128639952,-268.45855556,0.00011987,2]
[360898291,1747128639961,-400.0,0.00011987,2]
[360898292,1747128639970,-400.0,0.00011987,2]
[360898293,1747128639980,-400.0,0.00011987,2]
[360898294,1747128639989,-400.0,0.00011987,2]
[360898295,1747128639998,-400.0,0.00011987,2]
[360898296,1747128640008,-400.0,0.00011987,2]
[360898297,1747128640017,-400.0,0.00011987,2]
[360898298,1747128640027,-400.0,0.00011987,2]
[360898299,1747128640036,-409.10707008,0.00011987,2]
[360898300,1747128640045,-400.0,0.00011987,2]
[360898301,1747128640055,-407.68797589,0.00011987,2]
[360898302,1747128640064,-400.0,0.00011987,2]
[360898303,1747128640073,-271.52451843,0.00011987,2]
[360898304,1747128640083,-400.0,0.00011987,2]
[360898305,1747128640094,-400.0,0.00011987,2]
[360898306,1747128640103,-405.6813989,0.00011987,2]
[360898308,1747128640113,-400.0,0.00011987,2]
[360898309,1747128640122,-400.0,0.00011987,2]
[360898310,1747128640131,-483.98935206,0.00011987,2]
[360898311,1747128640140,-505.61286016,0.00011987,2]
[360898312,1747128640150,-400.0,0.00011987,2]
[360898313,1747128640159,-400.0,0.00011987,2]
[360898314,1747128640168,-400.0,0.00011987,2]
[360898315,1747128640177,-400.0,0.00011987,2]
[360898316,1747128640186,-400.0,0.00011987,2]
[360898317,1747128640196,-400.0,0.00011987,2]
[360898318,1747128640206,-406.16106218,0.00011987,2]
[360898319,1747128640217,-400.0,0.00011987,2]
[360898320,1747128640226,-409.04339171,0.00011987,2]
[360898321,1747128640236,-406.93269253,0.00011987,2]
[360898322,1747128640246,-400.0,0.00011987,2]
[360898323,1747128640255,-400.0,0.00011987,2]
[360898324,1747128640381,-400.0,0.00011987,2]
[360898325,1747128640407,-400.0,0.00011987,2]
[360898326,1747128640417,-469.04,0.00011987,2]
[360898327,1747128640427,-420.43,0.00011987,2]
[360898328,1747128640437,-400.0,0.00011987,2]
[360898329,1747128640447,-400.0,0.00011987,2]
[360898330,1747128640456,-406.17652967,0.00011987,2]
[360898331,1747128640466,-400.0,0.00011987,2]
[360898332,1747128640477,-400.0,0.00011987,2]
[360898333,1747128640486,-400.0,0.00011987,2]
[360898334,1747128640496,-407.60570297,0.00011987,2]
[360898335,1747128640506,-400.0,0.00011987,2]
[360898336,1747128640515,-400.0,0.00011987,2]
[360898337,1747128640525,-400.0,0.00011987,2]
[360898338,1747128640535,-400.0,0.00011987,2]
[360898339,1747128640544,-400.0,0.00011987,2]
[360898340,1747128640554,-400.0,0.00011987,2]
[360898341,1747128640563,-400.0,0.00011987,2]
[360898342,1747128640573,-400.0,0.00011987,2]
[360898343,1747128640583,-540.0,0.00011987,2]
[360898344,1747128640592,-400.0,0.00011987,2]
[360898345,1747128640601,-400.0,0.00011987,2]
[360898347,1747128640611,-400.0,0.00011987,2]
[360898349,1747128640621,-312.37,0.00011987,2]
[360898350,1747128640630,-400.0,0.00011987,2]
[360898352,1747128640639,-400.0,0.00011987,2]
[360898354,1747128640648,-431.62843882,0.00011987,2]
[360898356,1747128640657,-400.0,0.00011987,2]
[360898358,1747128640667,-400.0,0.00011987,2]
[360898360,1747128640676,-400.0,0.00011987,2]
[360898362,1747128640691,-405.00532295,0.00011987,2]
[360898364,1747128640701,-412.78956047,0.00011987,2]
[360898366,1747128640711,-400.0,0.00011987,2]
[360898368,1747128640720,-400.0,0.00011987,2]
[360898370,1747128640729,-400.0,0.00011987,2]
[360898372,1747128640739,-400.0,0.00011987,2]
[360898374,1747128640747,-1088.31,0.00011987,2]
[360898376,1747128640757,-400.0,0.00011987,2]
[360898378,1747128640766,-400.0,0.00011987,2]
[360898380,1747128640776,-517.61,0.00011987,2]
[360898383,1747128640786,-406.35806653,0.00011987,2]
[360898384,1747128640795,-400.0,0.00011987,2]
[360898387,1747128640804,-400.0,0.00011987,2]
[360898389,1747128640813,-394.0,0.00011987,2]
[360898391,1747128640823,-400.0,0.00011987,2]
[360898393,1747128640832,-400.0,0.00011987,2]
[360898395,1747128640841,-400.0,0.00011987,2]
[360898397,1747128640850,-400.0,0.00011987,2]
[360898399,1747128640859,-470.0,0.00011987,2]
[360898401,1747128640868,-490.43,0.00011987,2]
[360898403,1747128640877,-400.0,0.00011987,2]
[360898405,1747128640886,-400.0,0.00011987,2]
[360898407,1747128640896,-400.0,0.00011987,2]
[360898409,1747128640905,-403.6238044,0.00011987,2]
[360898411,1747128640914,-400.0,0.00011987,2]
[360898413,1747128640927,-401.56015443,0.00011987,2]
[360898415,1747128640937,-400.0,0.00011987,2]
[360898417,1747128640947,-400.0,0.00011987,2]
[360898419,1747128640956,-400.0,0.00011987,2]
[360898420,1747128640966,-400.0,0.00011987,2]
[360898421,1747128640975,-400.58510725,0.00011987,2]
[360898422,1747128640984,-400.0,0.00011987,2]
[360898423,1747128640994,-400.0,0.00011987,2]
[360898424,1747128641003,-427.1655726,0.00011987,2]
[360898425,1747128641012,-400.0,0.00011987,2]
[360898426,1747128641021,-400.0,0.00011987,2]
[360898427,1747128641031,-400.0,0.00011987,2]
[360898428,1747128641040,-401.07700831,0.00011987,2]
[360898430,1747128641050,-408.22615015,0.00011987,2]
[360898431,1747128641059,-402.54266634,0.00011987,2]
[360898432,1747128641068,-400.0,0.00011987,2]
[360898433,1747128641078,-400.0,0.00011987,2]
[360898434,1747128641087,-403.96584222,0.00011987,2]
[360898435,1747128641097,-405.69651418,0.00011987,2]
[360898436,1747128641106,-400.0,0.00011987,2]
[360898437,1747128641116,-400.0,0.00011987,2]
[360898438,1747128641126,-401.78419542,0.00011987,2]
[360898439,1747128641136,-422.26196324,0.00011987,2]
[360898440,1747128641148,-400.0,0.00011987,2]
[360898441,1747128641158,-400.0,0.00011987,2]
[360898442,1747128641167,-400.0,0.00011987,2]
[360898443,1747128641177,-400.0,0.00011987,2]
[360898444,1747128641186,-1081.11,0.00011987,2]
[360898445,1747128641196,-500.0,0.00011987,2]
[360898446,1747128641206,-400.0,0.00011987,2]
[360898447,1747128641215,-400.0,0.00011987,2]
[360898448,1747128641225,-400.0,0.00011987,2]
[360898449,1747128641234,-400.0,0.00011987,2]
[360898450,1747128641244,-1832.49,0.00011987,2]
[360898451,1747128641254,-400.0,0.00011987,2]
[360898452,1747128641264,-977.27,0.00011987,2]
[360898453,1747128641274,-400.0,0.00011987,2]
[360898454,1747128641283,-527.35,0.00011987,2]
[360898455,1747128641293,-400.0,0.00011987,2]
[360898456,1747128641303,-400.0,0.00011987,2]
[360898457,1747128641312,-400.0,0.00011987,2]
[360898458,1747128641322,-400.0,0.00011987,2]
[360898459,1747128641331,-400.0,0.00011987,2]
[360898460,1747128641342,-439.64,0.00011987,2]
[360898461,1747128641352,-400.0,0.00011987,2]
[360898462,1747128641361,-400.0,0.00011987,2]
[360898463,1747128641371,-498.83,0.00011987,2]
[360898464,1747128641380,-516.67,0.00011987,2]
[360898465,1747128641390,-400.0,0.00011987,2]
[360898466,1747128641399,-996.53,0.00011987,2]
[360898467,1747128641409,-719.81,0.00011987,2]
[360898468,1747128641419,-400.0,0.00011987,2]
[360898469,1747128641428,-400.0,0.00011987,2]
[360898470,1747128641437,-402.00041796,0.00011987,2]
[360898471,1747128641447,-400.0,0.00011987,2]
[360898472,1747128641456,-400.0,0.00011987,2]
[360898473,1747128641465,-400.0,0.00011987,2]
[360898474,1747128641475,-400.0,0.00011987,2]
[360898475,1747128641484,-400.0,0.00011987,2]
[360898476,1747128641493,-151.0,0.00011987,2]
[360898477,1747128641503,-879.947217,0.00011987,2]
[360898478,1747128641513,-877.44,0.00011987,2]
[360898479,1747128641522,-879.947217,0.00011987,2]
[360898480,1747128641532,-400.0,0.00011987,2]
[360898481,1747128641542,-152.197545,0.00011987,2]
[360898482,1747128641551,-400.0,0.00011987,2]
[360898483,1747128641561,-413.2842714,0.00011987,2]
[360898484,1747128641573,-400.0,0.00011987,2]
[360898485,1747128641582,-662.61,0.00011987,2]
[360898486,1747128641592,-3447.53,0.00011987,2]
[360898487,1747128641601,-400.0,0.00011987,2]
[360898488,1747128641611,-400.0,0.00011987,2]
[360898489,1747128641620,-1303.0,0.00011989,2]
[360898490,1747128641630,-850.256,0.00011989,2]
[360898491,1747128641643,-400.0,0.00011989,2]
[360898492,1747128641653,-400.0,0.00011989,2]
[360898493,1747128641663,-465.65274499,0.00011989,2]
[360898494,1747128641673,-506.5103252,0.00011989,2]
[360898495,1747128641684,-162.65188881,0.00011989,2]
[360898496,1747128641699,-516.63513907,0.00011989,2]
[360898497,1747128641709,-400.0,0.00011989,2]
[360898498,1747128641718,-400.0,0.00011989,2]
[360898499,1747128641728,-464.20538063,0.00011989,2]
[360898500,1747128641739,-268.98562119,0.00011989,2]
[360898501,1747128641749,-400.0,0.00011989,2]
[360898502,1747128641760,-188.29141313,0.00011989,2]
[360898503,1747128641773,-400.0,0.00011989,2]
[360898504,1747128641784,-400.0,0.00011989,2]
[360898505,1747128641794,-400.0,0.00011989,2]
[360898506,1747128641804,-400.0,0.00011989,2]
[360898507,1747128641814,-466.82180475,0.00011989,2]
[360898508,1747128641824,-400.0,0.00011989,2]
[360898509,1747128641834,-344.45172133,0.00011989,2]
[360898510,1747128641844,-548.77627425,0.00011989,2]
[360898511,1747128641854,-400.0,0.00011989,2]
[360898512,1747128641863,-401.56139985,0.00011989,2]
[360898513,1747128641873,-400.0,0.00011989,2]
[360898514,1747128641883,-400.0,0.00011989,2]
[360898515,1747128641892,-400.0,0.00011989,2]
[360898516,1747128641902,-400.0,0.00011989,2]
[360898517,1747128641911,-400.0,0.00011989,2]
[360898518,1747128641921,-405.14136489,0.00011989,2]
[360898519,1747128641930,-410.03525754,0.00011989,2]
[360898520,1747128641939,-400.0,0.00011989,2]
[360898521,1747128641951,-400.0,0.00011989,2]
[360898522,1747128641961,-400.0,0.00011989,2]
[360898523,1747128641970,-400.0,0.00011989,2]
[360898524,1747128641980,-400.0,0.00011989,2]
[360898525,1747128641989,-400.0,0.00011989,2]
[360898526,1747128641999,-154.93578412,0.00011989,2]
[360898527,1747128642008,-400.0,0.00011989,2]
[360898528,1747128642017,-400.0,0.00011989,2]
[360898529,1747128642026,-400.0,0.00011989,2]
[360898530,1747128642036,-400.0,0.00011989,2]
[360898531,1747128642045,-400.0,0.00011989,2]
[360898532,1747128642054,-400.0,0.00011989,2]
[360898533,1747128642063,-409.87544211,0.00011989,2]
[360898534,1747128642072,-400.0,0.00011989,2]
[360898535,1747128642082,-400.0,0.00011989,2]
[360898536,1747128642091,-400.0,0.00011989,2]
[360898537,1747128642101,-400.0,0.00011989,2]
[360898538,1747128642110,-400.0,0.00011989,2]
[360898539,1747128642119,-250.0,0.00011989,2]
[360898540,1747128642129,-525.12543203,0.00011989,2]
[360898541,1747128642138,-400.0,0.00011989,2]
[360898542,1747128642147,-400.0,0.00011989,2]
[360898543,1747128642157,-400.0,0.00011989,2]
[360898544,1747128642167,-400.0,0.00011989,2]
[360898545,1747128642176,-400.0,0.00011989,2]
[360898546,1747128642185,-400.0,0.00011989,2]
[360898547,1747128642195,-400.0,0.00011989,2]
[360898548,1747128642206,-450.0,0.00011989,2]
[360898549,1747128642215,-456.22840369,0.00011989,2]
[360898550,1747128642225,-400.0,0.00011989,2]
[360898551,1747128642234,-400.0,0.00011989,2]
[360898552,1747128642244,-400.0,0.00011989,2]
[360898553,1747128642253,-523.94031312,0.00011989,2]
[360898554,1747128642263,-400.0,0.00011989,2]
[360898555,1747128642272,-400.0,0.00011989,2]
[360898556,1747128642281,-400.0,0.00011989,2]
[360898557,1747128642291,-400.0,0.00011989,2]
[360898558,1747128642300,-400.0,0.00011989,2]
[360898559,1747128642310,-400.0,0.00011989,2]
[360898560,1747128642320,-400.0,0.00011989,2]
[360898561,1747128642329,-400.0,0.00011989,2]
[360898562,1747128642338,-400.0,0.00011989,2]
[360898563,1747128642348,-400.0,0.00011989,2]
[360898564,1747128642357,-400.0,0.00011989,2]
[360898565,1747128642366,-400.0,0.00011989,2]
[360898566,1747128642376,-400.0,0.00011989,2]
[360898567,1747128642385,-400.0,0.00011989,2]
[360898568,1747128642523,-400.0,0.00011989,2]
[360898569,1747128642533,-400.0,0.00011989,2]
[360898570,1747128642543,-400.0,0.00011989,2]
[360898571,1747128642552,-400.0,0.00011989,2]
[360898572,1747128642562,-400.0,0.00011989,2]
[360898573,1747128642571,-400.0,0.00011989,2]
[360898574,1747128642580,-187.55128155,0.00011989,2]
[360898575,1747128642590,-400.0,0.00011989,2]
[360898576,1747128642599,-400.0,0.00011989,2]
[360898577,1747128642608,-400.0,0.00011989,2]
[360898578,1747128642618,-400.0,0.00011989,2]
[360898579,1747128642627,-400.0,0.00011989,2]
[360898580,1747128642637,-151.0,0.00011989,2]
[360898581,1747128642647,-400.0,0.00011989,2]
[360898582,1747128642656,-400.0,0.00011989,2]
[360898583,1747128642666,-400.0,0.00011989,2]
[360898584,1747128642675,-151.0,0.00011989,2]
[360898585,1747128642687,-400.0,0.00011989,2]
[360898586,1747128642697,-400.0,0.00011989,2]
[360898587,1747128642707,-400.0,0.00011989,2]
[360898588,1747128642716,-400.0,0.00011989,2]
[360898589,1747128642726,-400.0,0.00011989,2]
[360898590,1747128642735,-400.0,0.00011989,2]
[360898591,1747128642745,-413.39029736,0.00011989,2]
[360898592,1747128642754,-400.0,0.00011989,2]
[360898593,1747128642763,-400.0,0.00011989,2]
[360898594,1747128642772,-168.6070471,0.00011989,2]
[360898595,1747128642781,-400.0,0.00011989,2]
[360898596,1747128642790,-400.0,0.00011989,2]
[360898597,1747128642799,-400.0,0.00011989,2]
[360898598,1747128642809,-417.81542462,0.00011989,2]
[360898599,1747128642819,-400.0,0.00011989,2]
[360898600,1747128642828,-400.0,0.00011989,2]
[360898601,1747128642837,-895.81,0.00011989,2]
[360898602,1747128642847,-400.0,0.00011989,2]
[360898603,1747128642856,-408.88165334,0.00011989,2]
[360898605,1747128642865,-400.0,0.00011989,2]
[360898606,1747128642875,-404.47719929,0.00011989,2]
[360898607,1747128642884,-400.0,0.00011989,2]
[360898608,1747128642893,-400.0,0.00011989,2]
[360898609,1747128642903,-400.0,0.00011989,2]
[360898610,1747128642912,-400.0,0.00011989,2]
[360898611,1747128642921,-400.0,0.00011989,2]
[360898612,1747128642931,-400.0,0.00011989,2]
[360898613,1747128642940,-400.0,0.00011989,2]
[360898614,1747128642952,-400.0,0.00011989,2]
[360898615,1747128642961,-400.0,0.00011989,2]
[360898616,1747128642971,-413.35828654,0.00011989,2]
[360898617,1747128642980,-400.0,0.00011989,2]
[360898618,1747128642989,-400.0,0.00011989,2]
[360898619,1747128642999,-230.93999108,0.00011989,2]
[360898620,1747128643009,-400.0,0.00011989,2]
[360898622,1747128643019,-400.0,0.00011989,2]
[360898623,1747128643029,-400.0,0.00011989,2]
[360898624,1747128643039,-400.0,0.00011989,2]
[360898626,1747128643049,-400.0,0.00011989,2]
[360898627,1747128643059,-400.0,0.00011989,2]
[360898628,1747128643068,-400.0,0.00011989,2]
[360898630,1747128643078,-400.0,0.00011989,2]
[360898631,1747128643088,-474.74,0.00011989,2]
[360898632,1747128643097,-400.0,0.00011989,2]
[360898633,1747128643106,-400.0,0.00011989,2]
[360898634,1747128643116,-400.0,0.00011989,2]
[360898635,1747128643125,-400.0,0.00011989,2]
[360898636,1747128643135,-400.0,0.00011989,2]
[360898637,1747128643144,-400.0,0.00011989,2]
[360898638,1747128643154,-400.0,0.00011989,2]
[360898639,1747128643163,-400.0,0.00011989,2]
[360898640,1747128643173,-400.0,0.00011989,2]
[360898641,1747128643183,-400.0,0.00011989,2]
[360898642,1747128643193,-400.0,0.00011989,2]
[360898643,1747128643205,-411.35487086,0.00011989,2]
[360898644,1747128643215,-151.0,0.00011989,2]
[360898645,1747128643224,-400.0,0.00011989,2]
[360898646,1747128643234,-400.0,0.00011989,2]
[360898647,1747128643243,-400.0,0.00011989,2]
[360898648,1747128643253,-500.0,0.00011989,2]
[360898649,1747128643262,-500.0,0.00011989,2]
[360898650,1747128643271,-252.92162434,0.00011989,2]
[360898651,1747128643280,-400.0,0.00011989,2]
[360898652,1747128643290,-531.05394919,0.00011989,2]
[360898653,1747128643300,-400.0,0.00011989,2]
[360898654,1747128643309,-400.0,0.00011989,2]
[360898655,1747128643319,-400.0,0.00011989,2]
[360898656,1747128643328,-400.0,0.00011989,2]
[360898657,1747128643338,-400.0,0.00011989,2]
[360898658,1747128643348,-405.40647847,0.00011989,2]
[360898659,1747128643357,-400.0,0.00011989,2]
[360898660,1747128643367,-400.0,0.00011989,2]
[360898662,1747128643376,-400.0,0.00011989,2]
[360898663,1747128643386,-151.0,0.00011989,2]
[360898664,1747128643395,-400.0,0.00011989,2]
[360898665,1747128643405,-405.83162102,0.00011989,2]
[360898666,1747128643415,-406.60468619,0.00011989,2]
[360898667,1747128643425,-422.17990081,0.00011989,2]
[360898668,1747128643434,-400.0,0.00011989,2]
[360898669,1747128643444,-400.0,0.00011989,2]
[360898670,1747128643454,-400.0,0.00011989,2]
[360898671,1747128643463,-400.0,0.00011989,2]
[360898672,1747128643473,-400.0,0.00011989,2]
[360898673,1747128643483,-400.0,0.00011989,2]
[360898674,1747128643492,-190.84523715,0.00011989,2]
[360898675,1747128643502,-400.0,0.00011989,2]
[360898676,1747128643511,-400.0,0.00011989,2]
[360898677,1747128643520,-304.3956746,0.00011989,2]
[360898678,1747128643530,-400.0,0.00011989,2]
[360898679,1747128643539,-404.96600415,0.00011989,2]
[360898680,1747128643549,-400.0,0.00011989,2]
[360898681,1747128643558,-383.98261672,0.00011989,2]
[360898682,1747128643569,-400.0,0.00011989,2]
[360898683,1747128643578,-444.33075225,0.00011989,2]
[360898684,1747128643588,-400.0,0.00011989,2]
[360898685,1747128643597,-151.0,0.00011989,2]
[360898686,1747128643606,-400.0,0.00011989,2]
[360898687,1747128643616,-400.0,0.00011989,2]
[360898688,1747128643625,-151.0,0.00011989,2]
[360898689,1747128643635,-400.0,0.00011989,2]
[360898690,1747128643644,-500.0,0.00011989,2]
[360898691,1747128643655,-400.0,0.00011989,2]
[360898692,1747128643664,-151.0,0.00011989,2]
[360898694,1747128643674,-400.0,0.00011989,2]
[360898696,1747128643684,-408.2817709,0.00011989,2]
[360898698,1747128643700,-400.0,0.00011989,2]
[360898699,1747128643709,-407.00053297,0.00011989,2]
[360898700,1747128643719,-400.0,0.00011989,2]
[360898701,1747128643729,-400.0,0.00011989,2]
[360898702,1747128643739,-1000.0,0.00011989,2]
[360898703,1747128643748,-453.46580332,0.00011989,2]
[360898704,1747128643758,-400.0,0.00011989,2]
[360898705,1747128643769,-400.0,0.00011989,2]
[360898706,1747128643779,-408.18163221,0.00011989,2]
[360898707,1747128643788,-409.59454186,0.00011989,2]
[360898708,1747128643797,-400.0,0.00011989,2]
[360898709,1747128643807,-400.0,0.00011989,2]
[360898710,1747128643816,-400.0,0.00011989,2]
[360898711,1747128643826,-151.0,0.00011989,2]
[360898712,1747128643835,-447.43463875,0.00011989,2]
[360898713,1747128643844,-400.0,0.00011989,2]
[360898714,1747128643854,-400.0,0.00011989,2]
[360898715,1747128643863,-497.57,0.00011989,2]
[360898716,1747128643873,-400.0,0.00011989,2]
[360898717,1747128643882,-400.0,0.00011989,2]
[360898718,1747128643891,-346.78164547,0.00011989,2]
[360898719,1747128643900,-400.0,0.00011989,2]
[360898720,1747128643909,-400.0,0.00011989,2]
[360898721,1747128643918,-525.91318121,0.00011989,2]
[360898722,1747128643928,-400.0,0.00011989,2]
[360898723,1747128643937,-400.0,0.00011989,2]
[360898724,1747128643948,-413.52985396,0.00011989,2]
[360898725,1747128643957,-508.04,0.00011989,2]
[360898726,1747128643966,-400.0,0.00011989,2]
[360898727,1747128643975,-409.99297432,0.00011989,2]
[360898728,1747128643984,-179.0761878,0.00011989,2]
[360898729,1747128643993,-450.0,0.00011989,2]
[360898730,1747128644002,-879.947217,0.00011989,2]
[360898731,1747128644011,-400.0,0.00011989,2]
[360898732,1747128644020,-879.947217,0.00011989,2]
[360898733,1747128644030,-406.57356842,0.00011989,2]